bitfinex/quotes_BTCUSD_20240718
["timestamp","ask_amount","ask_price","bid_price","bid_amount"]
[1721338146918,0.01290719,63962.0,63961.0,1.44500334]
[1721338147131,0.01290719,63962.0,63961.0,1.57482626]
[1721338147606,0.00073608,63962.0,63961.0,1.57482626]
[1721338149254,0.00073608,63962.0,63961.0,1.88751626]
[1721338149455,0.14523608,63962.0,63961.0,1.82141626]
[1721338149699,0.08123608,63962.0,63961.0,1.50872626]
[1721338149897,0.00073608,63962.0,63961.0,1.50872626]
[1721338150576,0.00073608,63962.0,63961.0,1.82141626]
[1721338151886,0.00073608,63962.0,63961.0,1.65082626]
[1721338152379,0.00073608,63962.0,63961.0,1.96351626]
[1721338153357,0.00073608,63962.0,63961.0,1.65082626]
[1721338154077,0.00073608,63962.0,63961.0,1.96351585]
[1721338156734,0.00073608,63962.0,63961.0,2.31013776]
[1721338157390,0.00073608,63962.0,63961.0,1.9635102]
[1721338157620,0.00073608,63962.0,63961.0,2.01043118]
[1721338157891,0.00073608,63962.0,63961.0,1.9635102]
[1721338158343,0.00073608,63962.0,63961.0,2.01043118]
[1721338158745,0.00073608,63962.0,63961.0,2.01042997]
[1721338158956,0.00073608,63962.0,63961.0,1.96350874]
[1721338159450,0.00073608,63962.0,63961.0,2.01043077]
[1721338160809,0.00073608,63962.0,63961.0,2.01042853]
[1721338161259,0.00073608,63962.0,63961.0,2.01042562]
[1721338163332,0.00073608,63962.0,63961.0,1.96350892]
[1721338164223,0.00073608,63962.0,63961.0,1.96351055]
[1721338166829,0.00073608,63962.0,63961.0,2.010425]
[1721338167229,0.00073608,63962.0,63961.0,1.96351055]
[1721338168897,0.00073608,63962.0,63961.0,2.0104229]
[1721338169335,0.00073608,63962.0,63961.0,1.96351055]
[1721338169551,0.00073608,63962.0,63961.0,1.50872055]
[1721338170875,0.00073608,63962.0,63961.0,1.50872145]
[1721338171114,0.00073608,63962.0,63961.0,1.50872144]
[1721338172485,0.00073608,63962.0,63961.0,1.37890334]
[1721338174744,0.07833608,63962.0,63961.0,1.37890334]
[1721338175855,0.00073608,63962.0,63961.0,1.37890334]
[1721338177017,0.00073608,63962.0,63961.0,1.50872831]
[1721338178169,0.00073608,63962.0,63961.0,1.50872852]
[1721338181688,0.00073608,63962.0,63961.0,1.50872808]
[1721338184957,0.00073608,63962.0,63961.0,1.50872852]
[1721338185348,0.00073608,63962.0,63961.0,1.37890334]
[1721338185793,0.00073608,63962.0,63961.0,1.50872843]
[1721338186706,0.00073608,63962.0,63961.0,1.37890334]
[1721338186939,0.00073608,63962.0,63961.0,1.50872859]
[1721338188344,0.00073608,63962.0,63961.0,1.37890334]
[1721338188615,0.06223608,63962.0,63961.0,1.37890334]
[1721338188842,0.08033608,63962.0,63961.0,1.37890334]
[1721338200640,0.00073608,63962.0,63961.0,1.37890334]
[1721338203374,0.13753608,63964.0,63963.0,1.09438]
[1721338203594,0.13753608,63964.0,63963.0,1.40311131]
[1721338204237,0.13753608,63964.0,63963.0,1.39811131]
[1721338206836,0.14453608,63964.0,63963.0,1.39911131]
[1721338207047,0.14453608,63964.0,63963.0,1.40111131]
[1721338214788,0.21047111,63964.0,63963.0,0.93408174]
[1721338215004,0.2573784,63964.0,63963.0,0.003]
[1721338215217,0.21047111,63964.0,63963.0,0.15934]
[1721338215435,0.21047111,63964.0,63963.0,0.2379043]
[1721338215663,0.21080367,63964.0,63963.0,0.2379043]
[1721338217106,0.28117542,63964.0,63963.0,0.2379043]
[1721338217346,0.21080367,63964.0,63963.0,0.2379043]
[1721338218948,0.18126033,63964.0,63963.0,0.2379043]
[1721338219633,0.18126033,63964.0,63963.0,0.0815643]
[1721338222555,0.18126033,63964.0,63963.0,0.2379043]
[1721338222787,0.18126033,63964.0,63963.0,0.0815643]
[1721338224229,0.18209033,63964.0,63963.0,0.0815643]
[1721338227563,0.18209033,63964.0,63963.0,0.2379043]
[1721338228147,0.18209033,63964.0,63963.0,0.003]
[1721338234648,0.20895201,63964.0,63963.0,0.003]
[1721338235164,0.25582363,63964.0,63963.0,0.003]
[1721338235383,0.27926015,63964.0,63963.0,0.003]
[1721338235846,0.20895201,63964.0,63963.0,0.15934]
[1721338236068,0.20895201,63964.0,63963.0,0.2379047]
[1721338236493,0.20895201,63964.0,63963.0,0.0815647]
[1721338236713,0.25582152,63964.0,63963.0,0.0815647]
[1721338237172,0.2558215,63964.0,63963.0,0.0815647]
[1721338239334,0.11828542,63964.0,63963.0,0.0815647]
[1721338240271,0.19588542,63964.0,63963.0,0.0815647]
[1721338240561,0.12215425,63964.0,63963.0,0.0815647]
[1721338240778,0.19561273,63964.0,63963.0,0.0815647]
[1721338241943,0.19561273,63964.0,63963.0,1.16284644]
[1721338241944,0.07114551,63964.0,63963.0,1.16284644]
[1721338242161,0.00783,63964.0,63963.0,1.08428174]
[1721338242637,0.00783,63964.0,63963.0,1.39696174]
[1721338243761,0.03477866,63964.0,63963.0,1.39696174]
[1721338243991,0.03474047,63964.0,63963.0,1.39696174]
[1721338244213,0.00783,63964.0,63963.0,1.39696174]
[1721338244433,0.0374325,63964.0,63963.0,1.39696174]
[1721338244655,0.00783,63964.0,63963.0,1.39696174]
[1721338244866,0.00783,63964.0,63963.0,1.53674921]
[1721338252272,0.00783,63964.0,63963.0,1.84942921]
[1721338254009,0.00783,63964.0,63963.0,1.92172921]
[1721338257373,0.00083,63964.0,63963.0,1.92072921]
[1721338257821,0.00083,63964.0,63963.0,2.23340921]
[1721338258030,0.00083,63964.0,63963.0,2.23140921]
[1721338258243,0.00183,63964.0,63963.0,2.23940921]
[1721338258450,0.00183,63964.0,63963.0,2.23340921]
[1721338258451,0.00083,63964.0,63963.0,2.23340921]
[1721338259807,0.00183,63964.0,63963.0,2.24140921]
[1721338260255,0.00183,63964.0,63963.0,2.23740921]
[1721338260496,0.00283,63964.0,63963.0,2.24740921]
[1721338260745,0.00183,63964.0,63963.0,2.24140921]
[1721338260958,0.00283,63964.0,63963.0,2.24940921]
[1721338261864,0.00283,63964.0,63963.0,2.17710921]
[1721338262093,0.00283,63964.0,63963.0,2.24940921]
[1721338263515,0.00283,63964.0,63963.0,2.17710921]
[1721338263700,0.00283,63964.0,63963.0,2.24940921]
[1721338274200,0.00283,63964.0,63963.0,2.37922076]
[1721338277686,0.00283,63964.0,63963.0,2.37921778]
[1721338278380,0.00283,63964.0,63963.0,2.47921778]
[1721338280936,0.00283,63964.0,63963.0,2.34940921]
[1721338281151,0.00283,63964.0,63963.0,2.4792075]
[1721338282652,0.00283,63964.0,63963.0,1.9490275]
[1721338283099,0.00283,63964.0,63963.0,2.02134631]
[1721338283309,0.00283,63964.0,63963.0,1.89152921]
[1721338283522,0.00283,63964.0,63963.0,1.79152921]
[1721338285001,0.14543,63964.0,63963.0,1.79152921]
[1721338286184,0.14443,63964.0,63963.0,1.78152921]
[1721338286625,0.14443,63964.0,63963.0,1.78852921]
[1721338286626,0.14543,63964.0,63963.0,1.78852921]
[1721338287066,0.14543,63964.0,63963.0,1.78052921]
[1721338287067,0.14443,63964.0,63963.0,1.78052921]
[1721338287286,0.14443,63964.0,63963.0,1.78252921]
[1721338290350,0.14443,63964.0,63963.0,1.78344221]
[1721338290769,0.14443,63964.0,63963.0,1.47076221]
[1721338291641,0.14343,63964.0,63963.0,1.47076221]
[1721338296976,0.14343,63964.0,63963.0,1.39846221]
[1721338303226,0.0779,63964.0,63963.0,1.39846221]
[1721338305933,0.001,63964.0,63963.0,1.39846221]
[1721338320797,0.001,63964.0,63963.0,1.54576221]
[1721338322790,0.00058905,63964.0,63963.0,1.54576221]
[1721338323008,0.00058905,63964.0,63963.0,1.46396221]
[1721338331564,0.00058905,63964.0,63963.0,1.54236221]
[1721338340065,0.00058905,63964.0,63963.0,1.46396221]
[1721338343296,0.07357778,63969.0,63968.0,1.094296]
[1721338343507,0.07357778,63969.0,63968.0,1.39506556]
[1721338344597,0.07757778,63969.0,63968.0,1.39506556]
[1721338344829,0.004,63969.0,63968.0,1.39506556]
[1721338345298,0.004,63969.0,63968.0,1.39906556]
[1721338345750,0.049,63973.0,63972.0,0.78159]
[1721338345985,0.12596302,63973.0,63972.0,0.87475613]
[1721338346445,0.20276302,63973.0,63972.0,0.87475613]
[1721338347368,0.2701136,63973.0,63972.0,0.87475613]
[1721338347595,0.2466495,63973.0,63972.0,0.87475613]
[1721338347875,0.2546495,63973.0,63972.0,0.87575613]
[1721338349188,0.25463779,63973.0,63972.0,0.87575613]
[1721338352616,0.25462399,63973.0,63972.0,0.87575613]
[1721338354110,0.25545399,63973.0,63972.0,0.87575613]
[1721338355623,0.30238108,63973.0,63972.0,0.87575613]
[1721338355841,0.20852691,63973.0,63972.0,0.87575613]
[1721338356057,0.17851409,63973.0,63972.0,0.87575613]
[1721338356268,0.30252648,63973.0,63972.0,0.87575613]
[1721338358019,0.25559228,63973.0,63972.0,0.87575613]
[1721338359996,0.17879228,63973.0,63972.0,0.87575613]
[1721338363002,0.13573683,63973.0,63972.0,0.87575613]
[1721338363283,0.17815457,63973.0,63972.0,0.87575613]
[1721338363504,0.2250828,63973.0,63972.0,0.87575613]
[1721338364651,0.13122634,63973.0,63972.0,0.87575613]
[1721338364868,0.2250828,63973.0,63972.0,0.87575613]
[1721338365111,0.13122634,63973.0,63972.0,0.87575613]
[1721338365324,0.2250828,63973.0,63972.0,0.87575613]
[1721338366244,0.10124774,63973.0,63972.0,0.87575613]
[1721338366459,0.1316819,63973.0,63972.0,0.87575613]
[1721338366911,0.22554979,63973.0,63972.0,0.87575613]
[1721338368213,0.22554979,63973.0,63972.0,0.56312013]
[1721338368214,0.1316819,63973.0,63972.0,0.56312013]
[1721338368426,0.20207731,63973.0,63972.0,0.56312013]
[1721338368639,0.1316819,63973.0,63972.0,0.56312013]
[1721338369746,0.13214194,63973.0,63972.0,0.56312013]
[1721338373172,0.13226664,63973.0,63972.0,0.56312013]
[1721338379980,0.10124774,63973.0,63972.0,0.56312013]
[1721338380195,0.24962662,63973.0,63972.0,0.56312013]
[1721338380411,0.13229637,63973.0,63972.0,0.56312013]
[1721338381056,0.22615875,63973.0,63972.0,0.56312013]
[1721338381721,0.13229637,63973.0,63972.0,0.56312013]
[1721338381927,0.22615875,63973.0,63972.0,0.56312013]
[1721338383216,0.13229637,63973.0,63972.0,0.56312013]
[1721338383468,0.22553237,63973.0,63972.0,0.71750187]
[1721338383676,0.17860093,63973.0,63972.0,0.86140187]
[1721338384315,0.22553237,63973.0,63972.0,0.86140187]
[1721338384526,0.13167544,63973.0,63972.0,0.86140187]
[1721338384742,0.13167544,63973.0,63972.0,0.78280187]
[1721338385426,0.17860156,63973.0,63972.0,0.78280187]
[1721338385658,0.17860156,63973.0,63972.0,0.78371487]
[1721338386592,0.10124774,63973.0,63972.0,0.78371487]
[1721338386791,0.17836753,63973.0,63972.0,0.78371487]
[1721338387095,0.17836753,63973.0,63972.0,0.71841487]
[1721338387811,0.24046753,63973.0,63972.0,0.71841487]
[1721338388253,0.17836753,63973.0,63972.0,0.71841487]
[1721338388479,0.13144085,63973.0,63972.0,0.71841487]
[1721338388701,0.1783819,63973.0,63972.0,0.71841487]
[1721338389346,0.14817455,63973.0,63972.0,0.71841487]
[1721338389562,0.17836273,63973.0,63972.0,0.71841487]
[1721338389779,0.17698689,63973.0,63972.0,0.71841487]
[1721338391736,0.13006001,63973.0,63972.0,0.40577887]
[1721338392394,0.13006001,63973.0,63972.0,0.71841487]
[1721338392613,0.13007568,63973.0,63972.0,0.71841487]
[1721338393068,0.13004862,63973.0,63972.0,0.71841487]
[1721338393326,0.0998719,63973.0,63972.0,0.71841487]
[1721338393586,0.1300486,63973.0,63972.0,0.71841487]
[1721338396540,0.12995705,63973.0,63972.0,0.71841487]
[1721338399452,0.12995705,63973.0,63972.0,0.09507913]
[1721338399669,0.12995705,63973.0,63972.0,0.001913]
[1721338400127,0.13001246,63973.0,63972.0,0.001913]
[1721338400811,0.20040513,63973.0,63972.0,0.001913]
[1721338401275,0.22387482,63973.0,63972.0,0.001913]
[1721338401538,0.13001246,63973.0,63972.0,0.001913]
[1721338401755,0.20971246,63973.0,63972.0,0.001913]
[1721338401976,0.3901344,63973.0,63972.0,0.001913]
[1721338402205,0.27281246,63973.0,63972.0,0.001913]
[1721338402675,0.39012636,63973.0,63972.0,0.001913]
[1721338403534,0.39065848,63973.0,63972.0,0.001913]
[1721338403781,0.27334492,63973.0,63972.0,0.017737]
[1721338404669,0.36718297,63973.0,63972.0,0.017737]
[1721338405118,0.2426719,63973.0,63972.0,0.017737]
[1721338405354,0.36701341,63973.0,63972.0,0.017737]
[1721338406897,0.2426719,63973.0,63972.0,0.017737]
[1721338407130,0.36691767,63973.0,63972.0,0.017737]
[1721338408505,0.36691767,63973.0,63972.0,0.001913]
[1721338409469,0.30381767,63973.0,63972.0,0.001913]
[1721338410353,0.30386826,63973.0,63972.0,0.001913]
[1721338410814,0.32732533,63973.0,63972.0,0.001913]
[1721338411517,0.30386107,63973.0,63972.0,0.001913]
[1721338412481,0.21003342,63973.0,63972.0,0.001913]
[1721338412720,0.30385952,63973.0,63972.0,0.001913]
[1721338413205,0.21003342,63973.0,63972.0,0.001913]
[1721338413679,0.30385869,63973.0,63972.0,0.001913]
[1721338413906,0.30396322,63973.0,63972.0,0.001913]
[1721338417198,0.30409238,63973.0,63972.0,0.001913]
[1721338420389,0.21026829,63973.0,63972.0,0.001913]
[1721338420594,0.30408789,63973.0,63972.0,0.001913]
[1721338420799,0.21026829,63973.0,63972.0,0.001913]
[1721338421009,0.3275494,63973.0,63972.0,0.001913]
[1721338421213,0.21026829,63973.0,63972.0,0.001913]
[1721338421561,0.27636829,63973.0,63972.0,0.001913]
[1721338423989,0.21055209,63973.0,63972.0,0.001913]
[1721338426637,0.32780853,63973.0,63972.0,0.001913]
[1721338427509,0.32761017,63973.0,63972.0,0.001913]
[1721338428148,0.39271017,63973.0,63972.0,0.001913]
[1721338428619,0.38471017,63973.0,63972.0,0.000913]
[1721338428828,0.39271017,63973.0,63972.0,0.001913]
[1721338429674,0.39171017,63973.0,63972.0,0.001913]
[1721338430060,0.40571017,63973.0,63972.0,0.002913]
[1721338430712,0.40570001,63973.0,63972.0,0.002913]
[1721338431163,1.13737833,63973.0,63972.0,0.002913]
[1721338431376,1.13737688,63973.0,63972.0,0.002913]
[1721338431602,1.07003244,63973.0,63972.0,0.002913]
[1721338432290,1.13773106,63973.0,63972.0,0.002913]
[1721338433576,1.07003244,63973.0,63972.0,0.002913]
[1721338433780,1.13778807,63973.0,63972.0,0.002913]
[1721338433987,1.27848156,63973.0,63972.0,0.002913]
[1721338434222,1.2791524,63973.0,63972.0,0.002913]
[1721338434943,1.27912626,63973.0,63972.0,0.002913]
[1721338435586,1.13845921,63973.0,63972.0,0.002913]
[1721338435794,1.32912626,63973.0,63972.0,0.002913]
[1721338436037,1.13845921,63973.0,63972.0,0.002913]
[1721338436250,1.27912626,63973.0,63972.0,0.002913]
[1721338436454,1.13845921,63973.0,63972.0,0.002913]
[1721338437047,1.07070598,63973.0,63972.0,0.002913]
[1721338439239,1.13855965,63973.0,63972.0,0.002913]
[1721338439496,1.13855947,63973.0,63972.0,0.002913]
[1721338440021,1.11655947,63973.0,63972.0,0.000913]
[1721338440241,1.14455947,63973.0,63972.0,0.002913]
[1721338440459,1.13055947,63973.0,63972.0,0.001913]
[1721338440679,1.04870598,63973.0,63972.0,0.000913]
[1721338440924,1.06270598,63973.0,63972.0,0.002913]
[1721338441159,1.1268659,63973.0,63972.0,0.002913]
[1721338442105,1.0768659,63973.0,63972.0,0.002913]
[1721338442334,1.33542317,63973.0,63972.0,0.002913]
[1721338442556,1.19479164,63973.0,63972.0,0.002913]
[1721338443477,1.26709164,63973.0,63972.0,0.002913]
[1721338443918,1.21709164,63973.0,63972.0,0.002913]
[1721338444359,1.1175489,63973.0,63972.0,0.002913]
[1721338444591,1.21782933,63973.0,63972.0,0.002913]
[1721338444821,1.35846829,63973.0,63972.0,0.002913]
[1721338445283,1.14955498,63973.0,63972.0,0.002913]
[1721338445507,0.83692398,63973.0,63972.0,0.002913]
[1721338447803,0.83707465,63973.0,63972.0,0.002913]
[1721338448028,0.88707465,63973.0,63972.0,0.002913]
[1721338448268,0.83707465,63973.0,63972.0,0.002913]
[1721338450690,0.76477465,63973.0,63972.0,0.002913]
[1721338450931,0.83707465,63973.0,63972.0,0.002913]
[1721338451172,0.8379554,63973.0,63972.0,0.002913]
[1721338452333,0.90764446,63973.0,63972.0,0.002913]
[1721338453014,0.96669813,63973.0,63972.0,0.002913]
[1721338453956,0.84700907,63973.0,63972.0,0.002913]
[1721338454392,0.81397157,63973.0,63972.0,0.002913]
[1721338454614,0.84722686,63973.0,63972.0,0.002913]
[1721338454862,0.91669134,63973.0,63972.0,0.002913]
[1721338455089,0.84722686,63973.0,63972.0,0.002913]
[1721338455802,0.91672487,63973.0,63972.0,0.002913]
[1721338456265,0.84722686,63973.0,63972.0,0.002913]
[1721338456492,0.91681908,63973.0,63972.0,0.002913]
[1721338456717,0.91697221,63973.0,63972.0,0.002913]
[1721338456941,1.05764191,63973.0,63972.0,0.002913]
[1721338457165,0.96697221,63973.0,63972.0,0.002913]
[1721338457393,0.91697221,63973.0,63972.0,0.002913]
[1721338457872,0.88347454,63973.0,63972.0,0.002913]
[1721338458087,0.91676971,63973.0,63972.0,0.002913]
[1721338458310,1.22940071,63973.0,63972.0,0.002913]
[1721338459020,1.27940071,63973.0,63972.0,0.002913]
[1721338459467,1.22940071,63973.0,63972.0,0.002913]
[1721338461274,1.22731937,63973.0,63972.0,0.002913]
[1721338463561,1.36800826,63973.0,63972.0,0.002913]
[1721338463985,1.22731937,63973.0,63972.0,0.002913]
[1721338464208,1.36800826,63973.0,63972.0,0.002913]
[1721338464432,1.22731937,63973.0,63972.0,0.002913]
[1721338464667,1.36800692,63973.0,63972.0,0.002913]
[1721338465325,1.19507248,63973.0,63972.0,0.002913]
[1721338465579,1.36775795,63973.0,63972.0,0.002913]
[1721338467577,1.2270342,63973.0,63972.0,0.002913]
[1721338467817,1.2770342,63973.0,63972.0,0.002913]
[1721338468305,1.22713677,63973.0,63972.0,0.002913]
[1721338470661,1.16203677,63973.0,63972.0,0.002913]
[1721338471417,1.16216793,63973.0,63972.0,0.002913]
[1721338473137,1.21216793,63973.0,63972.0,0.002913]
[1721338473711,1.16216793,63973.0,63972.0,0.002913]
[1721338474112,1.21216793,63973.0,63972.0,0.002913]
[1721338474822,1.21190202,63973.0,63972.0,0.002913]
[1721338477870,1.16190202,63973.0,63972.0,0.002913]
[1721338478088,1.16225906,63973.0,63972.0,0.002913]
[1721338478333,1.21236622,63973.0,63972.0,0.002913]
[1721338479419,1.16236622,63973.0,63972.0,0.002913]
[1721338479659,1.21236622,63973.0,63972.0,0.002913]
[1721338480327,1.16236622,63973.0,63972.0,0.002913]
[1721338480531,1.21236622,63973.0,63972.0,0.002913]
[1721338480780,1.21125665,63973.0,63972.0,0.002913]
[1721338480978,1.16125665,63973.0,63972.0,0.002913]
[1721338481435,1.06150257,63973.0,63972.0,0.002913]
[1721338481650,1.16185197,63973.0,63972.0,0.002913]
[1721338481860,1.21185197,63973.0,63972.0,0.002913]
[1721338482103,1.15614427,63973.0,63972.0,0.002913]
[1721338482541,1.20614427,63973.0,63972.0,0.002913]
[1721338483821,1.20602486,63973.0,63972.0,0.002913]
[1721338484936,1.36550509,63973.0,63972.0,0.002913]
[1721338485188,2.41391583,63973.0,63972.0,0.002913]
[1721338485407,2.51391583,63973.0,63972.0,0.002913]
[1721338486123,2.49991583,63973.0,63972.0,0.001913]
[1721338486339,2.51391583,63973.0,63972.0,0.001913]
[1721338487202,2.49991583,63973.0,63972.0,0.000913]
[1721338487413,2.51391583,63973.0,63972.0,0.000913]
[1721338488059,2.41365718,63973.0,63972.0,0.000913]
[1721338488299,2.51360795,63973.0,63972.0,0.000913]
[1721338491544,2.67202603,63973.0,63972.0,0.000913]
[1721338492002,2.51375805,63973.0,63972.0,0.000913]
[1721338492221,2.67202615,63973.0,63972.0,0.000913]
[1721338492451,2.51375805,63973.0,63972.0,0.000913]
[1721338494928,2.51388991,63973.0,63972.0,0.000913]
[1721338496290,2.82652091,63973.0,63972.0,0.000913]
[1721338496726,2.81252091,63973.0,63972.0,0.000913]
[1721338496973,2.82652091,63973.0,63972.0,0.000913]
[1721338497190,2.81252091,63973.0,63972.0,0.000913]
[1721338497878,2.82652091,63973.0,63972.0,0.000913]
[1721338498331,2.82647779,63973.0,63972.0,0.000913]
[1721338500912,1.144362,63964.0,63963.0,0.000913]
[1721338501142,1.50185366,63964.0,63963.0,0.000913]
[1721338501404,1.36123948,63964.0,63963.0,0.000913]
[1721338501621,1.50264442,63964.0,63963.0,0.000913]
[1721338501835,1.78002616,63964.0,63963.0,0.000913]
[1721338502045,1.80776155,63964.0,63963.0,0.000913]
[1721338502280,1.90146155,63964.0,63963.0,0.000913]
[1721338502537,1.96706155,63964.0,63963.0,0.000913]
[1721338502985,1.95306155,63964.0,63963.0,0.000913]
[1721338503409,1.93906155,63964.0,63963.0,0.000913]
[1721338503849,1.96706155,63964.0,63963.0,0.000913]
[1721338504566,0.31274,63951.0,63948.0,0.000913]
[1721338504779,0.681523,63949.0,63948.0,0.000913]
[1721338505006,1.87128395,63949.0,63948.0,0.000913]
[1721338505283,2.09305356,63949.0,63948.0,0.000913]
[1721338505735,1.34052282,63949.0,63948.0,0.139413]
[1721338505949,1.41282282,63949.0,63948.0,0.139413]
[1721338506638,1.42682282,63949.0,63948.0,0.139413]
[1721338506844,1.42682282,63949.0,63948.0,0.064413]
[1721338507086,1.35452282,63949.0,63948.0,0.079513]
[1721338507291,1.35793839,63949.0,63948.0,0.079513]
[1721338507948,1.35793839,63949.0,63931.0,0.312833]
[1721338507949,0.05,63936.0,63915.0,0.07808779]
[1721338508210,0.156411,63934.0,63933.0,0.0662]
[1721338508462,0.61657906,63934.0,63933.0,0.0662]
[1721338508924,0.92940606,63934.0,63933.0,0.0662]
[1721338509376,0.85917,63934.0,63933.0,0.0662]
[1721338510040,0.87317,63934.0,63933.0,0.0662]
[1721338510266,0.88717,63934.0,63933.0,0.0662]
[1721338511348,0.95947,63934.0,63933.0,0.0662]
[1721338511578,0.96024737,63934.0,63933.0,0.0662]
[1721338511817,1.27307437,63934.0,63933.0,0.0662]
[1721338512033,0.98324737,63934.0,63933.0,0.0662]
[1721338512264,1.29607437,63934.0,63933.0,0.0662]
[1721338513159,0.98324737,63934.0,63933.0,0.0662]
[1721338513807,0.98324737,63934.0,63931.0,0.0821]
[1721338513808,0.78208,63932.0,63931.0,0.0821]
[1721338514013,0.156418,63931.0,63930.0,0.0612]
[1721338514219,0.469276,63928.0,63927.0,0.0788]
[1721338514448,0.541576,63928.0,63927.0,0.0788]
[1721338514670,0.541576,63928.0,63927.0,0.1445]
[1721338516220,0.868427,63928.0,63927.0,0.1445]
[1721338516442,0.882427,63928.0,63927.0,0.0657]
[1721338518044,0.882427,63928.0,63924.0,0.0795]
[1721338518045,0.340851,63928.0,63924.0,0.1425]
[1721338518279,0.028,63928.0,63927.0,0.0799]
[1721338518493,0.256726,63928.0,63927.0,0.1429]
[1721338518927,0.242726,63928.0,63927.0,0.1429]
[1721338519134,0.256726,63928.0,63927.0,0.1429]
[1721338519575,0.242726,63928.0,63927.0,0.1429]
[1721338520062,0.256726,63928.0,63927.0,0.1429]
[1721338524285,0.1003,63928.0,63927.0,0.1429]
[1721338525149,0.256725,63928.0,63927.0,0.1429]
[1721338528222,0.1003,63928.0,63927.0,0.1429]
[1721338530220,0.08834575,63928.0,63927.0,0.1429]
[1721338531137,0.11683008,63928.0,63927.0,0.1429]
[1721338531355,0.14768611,63928.0,63927.0,0.1429]
[1721338531794,0.14745538,63928.0,63927.0,0.1429]
[1721338532235,0.15934499,63928.0,63927.0,0.1429]
[1721338533137,0.156439,63923.0,63921.0,0.0617]
[1721338533355,0.11483126,63922.0,63921.0,0.0617]
[1721338533565,0.1371436,63922.0,63921.0,0.0617]
[1721338534207,0.1371436,63922.0,63916.0,0.1413]
[1721338534432,0.0723,63917.0,63916.0,0.1413]
[1721338534655,0.12530287,63917.0,63916.0,0.0648]
[1721338534871,0.10644514,63917.0,63916.0,0.0648]
[1721338535086,0.13673877,63917.0,63916.0,0.0648]
[1721338535520,0.13973877,63917.0,63916.0,0.0648]
[1721338536663,0.14373877,63917.0,63916.0,0.0648]
[1721338537616,0.14373877,63917.0,63915.0,0.000913]
[1721338537835,0.0911328,63917.0,63916.0,0.1431]
[1721338538058,0.14589077,63917.0,63916.0,0.1431]
[1721338538542,0.14589148,63917.0,63916.0,0.1431]
[1721338539468,0.14189148,63917.0,63916.0,0.1431]
[1721338539687,0.14589148,63917.0,63916.0,0.1431]
[1721338540142,0.14189148,63917.0,63916.0,0.1431]
[1721338540373,0.14589148,63917.0,63916.0,0.1431]
[1721338541715,0.11541342,63917.0,63916.0,0.1431]
[1721338541957,0.14586816,63917.0,63916.0,0.0626]
[1721338542404,0.14586816,63917.0,63915.0,0.000913]
[1721338542649,0.05473536,63916.0,63915.0,0.000913]
[1721338542878,0.06655047,63916.0,63915.0,0.000913]
[1721338544686,0.06955047,63916.0,63915.0,0.000913]
[1721338545111,0.03909573,63916.0,63915.0,0.000913]
[1721338545327,0.06944809,63916.0,63915.0,0.000913]
[1721338545549,1.09742309,63916.0,63915.0,0.000913]
[1721338546224,1.09742309,63916.0,63915.0,0.00085846]
[1721338546454,1.09442309,63916.0,63915.0,0.00085846]
[1721338546678,1.10542309,63916.0,63915.0,0.00085846]
[1721338547331,1.0932328,63916.0,63915.0,0.00085846]
[1721338547545,1.1572328,63916.0,63915.0,0.00085846]
[1721338547794,1.1172328,63916.0,63915.0,0.00085846]
[1721338548019,1.1572328,63916.0,63915.0,0.00085846]
[1721338548266,1.1712328,63916.0,63915.0,0.00085846]
[1721338548511,1.19353222,63916.0,63915.0,0.00085846]
[1721338548743,1.56544222,63916.0,63915.0,0.00085846]
[1721338549193,1.63289812,63916.0,63915.0,0.00085846]
[1721338549413,1.88817353,63916.0,63915.0,0.00085846]
[1721338549872,1.87417353,63916.0,63915.0,0.00085846]
[1721338550096,1.79004588,63916.0,63915.0,0.00085846]
[1721338550336,1.80404588,63916.0,63915.0,0.00085846]
[1721338550564,1.71982396,63916.0,63915.0,0.00085846]
[1721338551043,1.73382396,63916.0,63915.0,0.00085846]
[1721338551294,1.17593558,63916.0,63915.0,0.00085846]
[1721338551524,1.08683222,63916.0,63915.0,0.00085846]
[1721338551755,1.08710256,63916.0,63915.0,0.00085846]
[1721338552188,1.08805899,63916.0,63915.0,0.00085846]
[1721338554883,1.05662716,63916.0,63915.0,0.00085846]
[1721338555105,1.08841372,63916.0,63915.0,0.00085846]
[1721338555320,0.75250372,63916.0,63915.0,0.00085846]
[1721338558054,0.90685329,63916.0,63915.0,0.00085846]
[1721338558278,0.87506673,63916.0,63915.0,0.00085846]
[1721338558502,0.90681819,63916.0,63915.0,0.00085846]
[1721338558750,0.75246862,63916.0,63915.0,0.00085846]
[1721338559598,0.8227086,63916.0,63915.0,0.00085846]
[1721338560523,0.75246862,63916.0,63915.0,0.00085846]
[1721338561400,0.84612192,63916.0,63915.0,0.00085846]
[1721338561627,0.72071716,63916.0,63915.0,0.00085846]
[1721338561843,0.84612026,63916.0,63915.0,0.00085846]
[1721338564510,1.14306983,63916.0,63915.0,0.00085846]
[1721338565185,0.89507029,63916.0,63915.0,0.00085846]
[1721338565411,0.96307553,63916.0,63915.0,0.00085846]
[1721338565643,1.27598553,63916.0,63915.0,0.00085846]
[1721338568353,1.11022716,63916.0,63915.0,0.00085846]
[1721338568565,1.21004995,63916.0,63915.0,0.00085846]
[1721338569484,1.13774995,63916.0,63915.0,0.00085846]
[1721338569696,1.21004995,63916.0,63915.0,0.00085846]
[1721338569910,1.23304995,63916.0,63915.0,0.00085846]
[1721338570134,1.35013907,63916.0,63915.0,0.00085846]
[1721338570584,1.50448864,63916.0,63915.0,0.00085846]
[1721338571761,1.31896847,63916.0,63915.0,0.00085846]
[1721338572008,1.23419933,63916.0,63915.0,0.00085846]
[1721338573146,1.75149107,63916.0,63915.0,0.00085846]
[1721338575850,1.67489107,63916.0,63915.0,0.00085846]
[1721338576271,1.62489107,63916.0,63915.0,0.00085846]
[1721338576500,1.67489107,63916.0,63915.0,0.00085846]
[1721338576930,1.62489107,63916.0,63915.0,0.00085846]
[1721338577564,1.77924064,63916.0,63915.0,0.00085846]
[1721338578486,0.82208344,63916.0,63915.0,0.00085846]
[1721338578919,0.93931284,63916.0,63915.0,0.00085846]
[1721338579389,0.82208344,63916.0,63915.0,0.14515846]
[1721338581614,0.82154458,63916.0,63915.0,0.14515846]
[1721338583430,1.36753632,63916.0,63915.0,0.00085846]
[1721338583644,1.15745458,63916.0,63915.0,0.00085846]
[1721338584095,1.15745458,63916.0,63915.0,0.08145846]
[1721338584972,1.15763932,63916.0,63915.0,0.08145846]
[1721338585888,1.15758861,63916.0,63915.0,0.08145846]
[1721338586317,1.08896498,63916.0,63915.0,0.08145846]
[1721338587624,0.75305498,63916.0,63915.0,0.08145846]